lending/lending_fUSD_20240411
["ID","MTS","AMOUNT","RATE_DAILY","PERIOD"]
[322206656,1712870044032,-510.02,0.00033424,7]
[322206657,1712870044044,-565.51,0.00033424,7]
[322206658,1712870044056,-2028.74,0.00033424,7]
[322206659,1712870044068,-448.00900964,0.00033424,7]
[322206660,1712870044079,-3939.9,0.00033424,7]
[322206661,1712870044088,-733.75,0.00033424,7]
[322206662,1712870044098,-5901.28,0.00033424,7]
[322206663,1712870044109,-2166.88,0.00033424,7]
[322206664,1712870044119,-722.6,0.00033424,7]
[322206665,1712870044129,-700.0,0.00033424,10]
[322206666,1712870044138,-1800.0,0.00033424,10]
[322206667,1712870044148,-382.38120087,0.00033424,10]
[322206668,1712870044159,-1000.0,0.00033425,30]
[322206669,1712870044169,-1000.0,0.00033425,30]
[322206670,1712870044180,-1000.0,0.00033425,30]
[322206671,1712870044190,-1000.0,0.00033425,30]
[322206672,1712870044200,-1000.0,0.00033425,30]
[322206673,1712870044211,-1000.0,0.00033425,30]
[322206674,1712870044220,-1000.0,0.00033425,30]
[322206675,1712870044233,-1000.0,0.00033425,30]
[322206676,1712870044243,-1000.0,0.00033425,30]
[322206677,1712870044254,-1000.0,0.00033425,30]
[322206678,1712870044264,-1000.0,0.00033425,30]
[322206679,1712870044275,-1000.0,0.00033425,30]
[322206680,1712870044285,-1000.0,0.00033425,30]
[322206681,1712870044296,-1000.0,0.00033425,30]
[322206682,1712870044307,-1000.0,0.00033425,30]
[322206683,1712870044317,-1369.54622527,0.00033425,30]
[322206684,1712870044328,-150.0,0.00033428,2]
[322206685,1712870044338,-150.0,0.0003344,2]
[322206686,1712870044348,-430.0,0.0003344,2]
[322206687,1712870044358,-1262.0,0.0003344,2]
[322206688,1712870044368,-608.0,0.0003344,2]
[322206689,1712870044378,-300.0,0.00033442,2]
[322206690,1712870044388,-1049.59971777,0.00033444,5]
[322206691,1712870044398,-150.0,0.00033458,2]
[322206692,1712870044408,-1500.0,0.00033466,2]
[322206693,1712870044421,-300.0,0.00033472,2]
[322206694,1712870044431,-150.0,0.00033485,2]
[322206695,1712870044441,-150.0,0.00033498,2]
[322206696,1712870044451,-14030.45,0.000335,2]
[322206697,1712870044462,-14030.45,0.000335,2]
[322206698,1712870044471,-14030.45,0.000335,2]
[322206699,1712870044484,-14030.45,0.000335,2]
[322206700,1712870044498,-14030.45,0.000335,2]
[322206701,1712870044508,-14030.45,0.000335,2]
[322206702,1712870044518,-14030.45,0.000335,2]
[322206703,1712870044527,-14030.45,0.000335,2]
[322206704,1712870044538,-14030.45,0.000335,2]
[322206705,1712870044550,-14030.45,0.000335,2]
[322206706,1712870044561,-14030.45,0.000335,2]
[322206707,1712870044570,-14030.45,0.000335,2]
[322206708,1712870044581,-14030.45,0.000335,2]
[322206709,1712870044592,-14030.45,0.000335,2]
[322206710,1712870044601,-14030.45,0.000335,2]
[322206711,1712870044611,-14030.45,0.000335,2]
[322206712,1712870044621,-14030.45,0.000335,2]
[322206713,1712870044632,-14030.45,0.000335,2]
[322206714,1712870044642,-14030.45,0.000335,2]
[322206715,1712870044653,-14030.45,0.000335,2]
[322206716,1712870044664,-150.0,0.00033504,2]
[322206717,1712870044675,-150.0,0.00033517,2]
[322206718,1712870044685,-150.0,0.00033527,2]
[322206719,1712870044695,-1500.0,0.00033529,2]
[322206720,1712870044705,-150.0,0.00033533,2]
[322206721,1712870044720,-150.0,0.00033538,2]
[322206722,1712870044731,-150.0,0.00033548,2]
[322206723,1712870044740,-1500.0,0.00033554,2]
[322206724,1712870044749,-150.0,0.00033565,2]
[322206725,1712870044760,-150.0,0.00033569,2]
[322206726,1712870044770,-150.0,0.00033579,2]
[322206727,1712870044779,-150.0,0.00033585,2]
[322206728,1712870044789,-300.0,0.00033598,2]
[322206729,1712870044798,-150.0,0.00033599,2]
[322206730,1712870044809,-150.0,0.00033608,2]
[322206731,1712870044820,-323.50990005,0.00033621,4]
[322206732,1712870044830,-371.31816133,0.00033622,7]
[322206733,1712870044841,-150.0,0.00033631,2]
[322206734,1712870044851,-150.0,0.00033644,2]
[322206735,1712870044862,-150.0,0.00033654,2]
[322206736,1712870044872,-150.0,0.00033657,2]
[322206737,1712870044883,-153.40602891,0.00033667,7]
[322206738,1712870044893,-150.0,0.00033668,2]
[322206739,1712870044903,-300.0,0.00033675,2]
[322206740,1712870044914,-153.31963962,0.00033682,7]
[322206741,1712870044924,-150.0,0.00033689,2]
[322206742,1712870045356,-150.0,0.00033691,2]
[322206743,1712870045372,-507.98262406,0.00033698,7]
[322206744,1712870045382,-590.96978792,0.00033698,7]
[322206745,1712870045391,-805.671026,0.00033698,7]
[322206746,1712870045401,-629.65318917,0.00033698,7]
[322206747,1712870045411,-765.15653914,0.00033698,7]
[322206748,1712870045423,-162.42817787,0.00033698,7]
[322206749,1712870045433,-673.56069355,0.00033698,7]
[322206750,1712870045442,-212.39303451,0.00033698,7]
[322206751,1712870045452,-1055.23462914,0.00033698,7]
[322206752,1712870045462,-838.27879253,0.00033698,7]
[322206753,1712870045471,-513.27412494,0.00033698,7]
[322206754,1712870045482,-561.37777397,0.00033698,7]
[322206755,1712870045493,-520.93106356,0.00033698,7]
[322206756,1712870045503,-532.91,0.00033698,7]
[322206757,1712870045513,-717.88289888,0.00033698,7]
[322206758,1712870045523,-956.58255068,0.00033698,7]
[322206759,1712870045532,-527.2399693,0.00033698,7]
[322206760,1712870045541,-583.58536384,0.00033698,7]
[322206761,1712870045551,-262.28657902,0.00033698,7]
[322206762,1712870045561,-794.46323638,0.00033698,7]
[322206763,1712870045571,-776.04503745,0.00033698,7]
[322206764,1712870045580,-1268.65194348,0.00033698,7]
[322206765,1712870045590,-579.92097392,0.00033698,7]
[322206766,1712870045599,-683.86499169,0.00033698,7]
[322206767,1712870045609,-1283.74815464,0.00033698,7]
[322206768,1712870045619,-1242.4192862,0.00033698,7]
[322206769,1712870045629,-686.6677539,0.00033698,7]
[322206770,1712870045639,-610.2771666,0.00033698,7]
[322206771,1712870045648,-964.51,0.00033698,7]
[322206772,1712870045658,-552.40334412,0.00033698,7]
[322206773,1712870045668,-993.70157167,0.00033698,7]
[322206774,1712870045678,-675.4139177,0.00033698,7]
[322206775,1712870045687,-1308.61211324,0.00033698,7]
[322206776,1712870045696,-703.2685935,0.00033698,7]
[322206777,1712870045706,-564.7445328,0.00033698,7]
[322206778,1712870045716,-561.90497339,0.00033698,7]
[322206779,1712870045725,-560.82296074,0.00033698,7]
[322206780,1712870045736,-1067.60288853,0.00033698,7]
[322206781,1712870045746,-598.42332877,0.00033698,7]
[322206782,1712870045755,-691.39610507,0.00033698,7]
[322206783,1712870045765,-191.8846741,0.00033698,7]
[322206784,1712870045775,-646.16551869,0.00033698,7]
[322206785,1712870045785,-704.15042487,0.00033698,7]
[322206786,1712870045794,-1172.55300737,0.00033698,7]
[322206787,1712870045804,-820.53247113,0.00033698,7]
[322206788,1712870045814,-1404.00340028,0.00033698,7]
[322206789,1712870045824,-868.76,0.00033698,7]
[322206790,1712870045834,-1352.37,0.00033698,7]
[322206791,1712870045843,-1263.22567969,0.00033698,7]
[322206792,1712870045853,-1192.62269944,0.00033698,7]
[322206793,1712870045863,-1391.46509828,0.00033698,7]
[322206794,1712870045873,-811.49042228,0.00033698,7]
[322206795,1712870045883,-609.70277374,0.00033698,7]
[322206796,1712870045893,-676.5231361,0.00033698,7]
[322206797,1712870045902,-540.43324859,0.00033698,7]
[322206798,1712870045912,-1771.08575624,0.00033698,7]
[322206799,1712870045922,-541.49103118,0.00033698,7]
[322206800,1712870045931,-1468.11467746,0.00033698,7]
[322206801,1712870045941,-862.50338832,0.00033698,7]
[322206802,1712870045951,-1183.72611941,0.00033698,7]
[322206803,1712870045961,-839.5606553,0.00033698,7]
[322206804,1712870045970,-165.78502762,0.00033698,7]
[322206805,1712870045981,-1787.19837427,0.00033698,7]
[322206806,1712870045990,-1253.8039178,0.00033698,7]
[322206807,1712870045999,-735.83035009,0.00033698,7]
[322206808,1712870046008,-1318.59613895,0.00033698,7]
[322206809,1712870046018,-700.78750933,0.00033698,7]
[322206810,1712870046027,-1495.21422109,0.00033698,7]
[322206811,1712870046037,-759.14676874,0.00033698,7]
[322206812,1712870046046,-521.3404351,0.00033698,7]
[322206813,1712870046056,-1654.90785819,0.00033698,7]
[322206814,1712870046066,-638.6869958,0.00033698,7]
[322206815,1712870046075,-1164.40418819,0.00033698,7]
[322206816,1712870046084,-949.24399488,0.00033698,7]
[322206817,1712870046094,-777.77575123,0.00033698,7]
[322206818,1712870046103,-1096.25669265,0.00033698,7]
[322206819,1712870046113,-646.91965254,0.00033698,7]
[322206820,1712870046122,-958.85569726,0.00033698,7]
[322206821,1712870046133,-683.93022628,0.00033698,7]
[322206822,1712870046143,-897.56142318,0.00033698,7]
[322206823,1712870046152,-684.85984655,0.00033698,7]
[322206824,1712870046162,-543.55615095,0.00033698,7]
[322206825,1712870046171,-809.28751956,0.00033698,7]
[322206826,1712870046181,-698.29596067,0.00033698,7]
[322206827,1712870046190,-1067.12109424,0.00033698,7]
[322206828,1712870046199,-1021.50474024,0.00033698,7]
[322206829,1712870046208,-784.61888609,0.00033698,7]
[322206830,1712870046217,-1207.39750669,0.00033698,7]
[322206831,1712870046227,-854.04168572,0.00033698,7]
[322206832,1712870046238,-1154.81443139,0.00033698,7]
[322206833,1712870046247,-1500.59826039,0.00033698,7]
[322206834,1712870046257,-1102.49897443,0.00033698,7]
[322206835,1712870046266,-1685.12020326,0.00033698,7]
[322206836,1712870046276,-864.63952789,0.00033698,7]
[322206837,1712870046285,-1050.09131551,0.00033698,7]
[322206838,1712870046295,-1060.54256479,0.00033698,7]
[322206839,1712870046304,-534.43165068,0.00033698,7]
[322206840,1712870046314,-727.6148808,0.00033698,7]
[322206841,1712870046323,-316.26289957,0.00033698,7]
[322206842,1712870046333,-598.87085892,0.00033698,7]
[322206843,1712870046343,-1013.19399534,0.00033698,7]
[322206844,1712870046352,-552.38142516,0.00033698,7]
[322206845,1712870046362,-722.94092,0.00033698,7]
[322206846,1712870046371,-585.79966003,0.00033698,7]
[322206847,1712870046380,-1455.12772258,0.00033698,7]
[322206848,1712870046390,-601.0102681,0.00033698,7]
[322206849,1712870046399,-627.17003244,0.00033698,7]
[322206850,1712870046409,-1870.70973232,0.00033698,7]
[322206851,1712870046422,-922.09436711,0.00033698,7]
[322206852,1712870046432,-1288.42602779,0.00033698,7]
[322206853,1712870046441,-670.83616398,0.00033698,7]
[322206854,1712870046451,-1052.38654259,0.00033698,7]
[322206855,1712870046461,-1720.53652855,0.00033698,7]
[322206856,1712870046470,-2622.43926441,0.00033698,7]
[322206857,1712870046481,-1850.31819115,0.00033698,7]
[322206858,1712870046491,-869.44996243,0.00033698,7]
[322206859,1712870046500,-933.18728775,0.00033698,7]
[322206860,1712870046510,-722.21816743,0.00033698,7]
[322206861,1712870046520,-1172.77490923,0.00033698,7]
[322206862,1712870046529,-1203.50269884,0.00033698,7]
[322206863,1712870046539,-993.85,0.00033698,7]
[322206864,1712870046548,-1318.94,0.00033698,7]
[322206865,1712870046558,-879.25638073,0.00033698,7]
[322206866,1712870046567,-1664.77276822,0.00033698,7]
[322206867,1712870046577,-553.32563413,0.00033698,7]
[322206868,1712870046587,-916.91720062,0.00033698,7]
[322206869,1712870046596,-1597.17588854,0.00033698,7]
[322206870,1712870046605,-923.58876465,0.00033698,7]
[322206871,1712870046615,-1225.56219956,0.00033698,7]
[322206872,1712870046625,-1736.70063696,0.00033698,7]
[322206873,1712870046634,-1688.00159036,0.00033698,7]
[322206874,1712870046644,-533.71642819,0.00033698,7]
[322206875,1712870046653,-892.26162978,0.00033698,7]
[322206876,1712870046663,-698.21984069,0.00033698,7]
[322206877,1712870046673,-1619.09026068,0.00033698,7]
[322206878,1712870046683,-998.23577997,0.00033698,7]
[322206879,1712870046693,-1890.55576893,0.00033698,7]
[322206880,1712870046702,-827.26127175,0.00033698,7]
[322206881,1712870046711,-911.54134522,0.00033698,7]
[322206882,1712870046720,-1646.11,0.00033698,7]
[322206883,1712870046730,-767.0275974,0.00033698,7]
[322206884,1712870046739,-1116.84948404,0.00033698,7]
[322206885,1712870046748,-570.85356535,0.00033698,7]
[322206886,1712870046758,-1023.00942899,0.00033698,7]
[322206887,1712870046767,-831.71251069,0.00033698,7]
[322206888,1712870046777,-681.04820658,0.00033698,7]
[322206889,1712870046786,-753.03118706,0.00033698,7]
[322206890,1712870046795,-1499.79824931,0.00033698,7]
[322206891,1712870046804,-814.30862558,0.00033698,7]
[322206892,1712870046814,-7400.30717814,0.00033698,7]
[322206893,1712870046823,-1023.32558685,0.00033698,7]
[322206894,1712870046833,-700.93904923,0.00033698,7]
[322206895,1712870046842,-950.26693069,0.00033698,7]
[322206896,1712870046852,-1871.91131331,0.00033698,7]
[322206897,1712870046864,-3724.76671605,0.00033698,7]
[322206898,1712870046874,-5395.28723975,0.00033698,7]
[322206899,1712870046885,-1464.28103105,0.00033698,7]
[322206900,1712870046895,-978.66917918,0.00033698,7]
[322206901,1712870046904,-693.60895851,0.00033698,7]
[322206902,1712870046914,-984.5230998,0.00033698,7]
[322206903,1712870046924,-4620.04920929,0.00033698,7]
[322206904,1712870046934,-1301.09488642,0.00033698,7]
[322206905,1712870046944,-934.383201,0.00033698,7]
[322206906,1712870046953,-1543.16852028,0.00033698,7]
[322206907,1712870046963,-5425.4654043,0.00033698,7]
[322206908,1712870046972,-1214.41356336,0.00033698,7]
[322206909,1712870046982,-788.82110153,0.00033698,7]
[322206910,1712870046992,-613.46241852,0.00033698,7]
[322206911,1712870047001,-827.38210343,0.00033698,7]
[322206912,1712870047010,-1593.65137409,0.00033698,7]
[322206913,1712870047020,-1948.85673733,0.00033698,7]
[322206914,1712870047030,-9750.01872688,0.00033698,7]
[322206915,1712870047041,-2131.87090908,0.00033698,7]
[322206916,1712870047051,-1560.28493661,0.00033698,7]
[322206917,1712870047061,-1518.42294394,0.00033698,7]
[322206918,1712870047070,-1413.30969379,0.00033698,7]
[322206919,1712870047081,-661.47644323,0.00033698,7]
[322206920,1712870047091,-2479.13304517,0.00033698,7]
[322206921,1712870047101,-5230.99219722,0.00033698,7]
[322206922,1712870047111,-3648.14752656,0.00033698,7]
[322206923,1712870047122,-1464.31666827,0.00033698,7]
[322206924,1712870047131,-1527.56376297,0.00033698,7]
[322206925,1712870047141,-1358.23223263,0.00033698,7]
[322206926,1712870047150,-1020.34804341,0.00033698,7]
[322206927,1712870047160,-668.88417904,0.00033698,7]
[322206928,1712870047170,-11162.40831195,0.00033698,7]
[322206929,1712870047181,-3874.49319543,0.00033698,7]
[322206930,1712870047190,-41084.81358781,0.00033698,7]
[322206931,1712870047202,-740.78421549,0.00033698,7]
[322206932,1712870047213,-548.63390488,0.00033698,7]
[322206933,1712870047223,-7785.86532146,0.00033698,7]
[322206934,1712870047234,-1513.28546923,0.00033698,7]
[322206935,1712870047243,-567.2844435,0.00033698,7]
[322206936,1712870047253,-3631.97603954,0.00033698,7]
[322206937,1712870047263,-8422.07365485,0.00033698,7]
[322206938,1712870047274,-3207.84607836,0.00033698,7]
[322206939,1712870047283,-2311.14298434,0.00033698,7]
[322206940,1712870047294,-922.03580625,0.00033698,7]
[322206941,1712870047303,-1525.49250618,0.00033698,7]
[322206942,1712870047313,-12662.58489689,0.00033698,7]
[322206943,1712870047323,-1851.74055407,0.00033698,7]
[322206944,1712870047332,-3131.43639086,0.00033698,7]
[322206945,1712870047342,-875.24706822,0.00033698,7]
[322206946,1712870047352,-2710.07140681,0.00033698,7]
[322206947,1712870047362,-7402.35212608,0.00033698,7]
[322206948,1712870047370,-1503.32233116,0.00033698,7]
[322206949,1712870047380,-2499.63100764,0.00033698,7]
[322206950,1712870047389,-650.35559858,0.00033698,7]
[322206951,1712870047398,-5388.53522345,0.00033698,7]
[322206952,1712870047408,-1676.23801889,0.00033698,7]
[322206953,1712870047421,-2309.53042852,0.00033698,7]
[322206954,1712870047432,-928.6681649,0.00033698,7]
[322206955,1712870047442,-5653.50617639,0.00033698,7]
[322206956,1712870047451,-643.24714343,0.00033698,7]
[322206957,1712870047462,-1704.09248511,0.00033698,7]
[322206958,1712870047472,-790.76,0.00033698,7]
[322206959,1712870047482,-2381.92190064,0.00033698,7]
[322206960,1712870047493,-852.94714029,0.00033698,7]
[322206961,1712870047503,-2994.35380629,0.00033698,7]
[322206962,1712870047513,-4680.35907168,0.00033698,7]
[322206963,1712870047523,-21256.40968596,0.00033698,7]
[322206964,1712870047532,-989.11236084,0.00033698,7]
[322206965,1712870047541,-5675.56792065,0.00033698,7]
[322206966,1712870047550,-660.69981661,0.00033698,7]
[322206967,1712870047561,-2867.32860314,0.00033698,7]
[322206968,1712870047570,-2205.04430809,0.00033698,7]
[322206969,1712870047579,-1346.41574342,0.00033698,7]
[322206970,1712870047588,-2960.93070729,0.00033698,7]
[322206971,1712870047597,-887.32191353,0.00033698,7]
[322206972,1712870047608,-1179.3507471,0.00033698,7]
[322206973,1712870047618,-1284.05969387,0.00033698,7]
[322206974,1712870047627,-872.81665823,0.00033698,7]
[322206975,1712870047637,-1502.48554959,0.00033698,7]
[322206976,1712870047646,-10128.40983169,0.00033698,7]
[322206977,1712870047656,-684.04312314,0.00033698,7]
[322206978,1712870047665,-623.74,0.00033698,7]
[322206979,1712870047783,-1185.7228942,0.00033698,7]
[322206980,1712870047794,-2367.35793911,0.00033698,7]
[322206981,1712870047803,-1427.10279684,0.00033698,7]
[322206982,1712870047812,-2143.47248491,0.00033698,7]
[322206983,1712870047822,-1107.07841872,0.00033698,7]
[322206984,1712870047832,-2686.37518618,0.00033698,7]
[322206985,1712870047841,-2722.01290521,0.00033698,7]
[322206986,1712870047851,-3567.25267894,0.00033698,7]
[322206987,1712870047861,-3548.99585213,0.00033698,7]
[322206988,1712870047871,-19344.99944557,0.00033698,7]
[322206989,1712870047881,-1844.30174076,0.00033698,7]
[322206990,1712870047891,-537.14477604,0.00033698,7]
[322206991,1712870047902,-1228.04213853,0.00033698,7]
[322206992,1712870047912,-4239.22546136,0.00033698,7]
[322206993,1712870047922,-3053.50509456,0.00033698,7]
[322206994,1712870047931,-1745.28215965,0.00033698,7]
[322206995,1712870047941,-3035.74426001,0.00033698,7]
[322206996,1712870047950,-4808.49835925,0.00033698,7]
[322206997,1712870047961,-2664.59238548,0.00033698,7]
[322206998,1712870047973,-1373.93278909,0.00033698,7]
[322206999,1712870047982,-505.7644603,0.00033698,7]
[322207000,1712870047993,-738.24166283,0.00033698,7]
[322207001,1712870048003,-1109.92799616,0.00033698,7]
[322207002,1712870048014,-3191.09496362,0.00033698,7]
[322207003,1712870048024,-2221.89584006,0.00033698,7]
[322207004,1712870048033,-2263.97211846,0.00033698,7]
[322207005,1712870048043,-17424.54438441,0.00033698,7]
[322207006,1712870048053,-1128.67817033,0.00033698,7]
[322207007,1712870048063,-1502.24,0.00033698,7]
[322207008,1712870048073,-17072.49382262,0.00033698,7]
[322207009,1712870048084,-612.78126643,0.00033698,7]
[322207010,1712870048093,-3052.37548487,0.00033698,7]
[322207011,1712870048102,-3640.50010989,0.00033698,7]
[322207012,1712870048112,-1958.16087216,0.00033698,7]
[322207013,1712870048122,-955.91255325,0.00033698,7]
[322207014,1712870048132,-3659.33767793,0.00033698,7]
[322207015,1712870048141,-5766.31184142,0.00033698,7]
[322207016,1712870048151,-3575.27549682,0.00033698,7]
[322207017,1712870048160,-712.0063191,0.00033698,7]
[322207018,1712870048170,-1392.4719784,0.00033698,7]
[322207019,1712870048179,-7639.66400949,0.00033698,7]
[322207020,1712870048189,-7389.67713722,0.00033698,7]
[322207021,1712870048200,-3014.7263819,0.00033698,7]
[322207022,1712870048211,-2191.15597529,0.00033698,7]
[322207023,1712870048222,-5336.1730904,0.00033698,7]
[322207024,1712870048232,-4291.67328568,0.00033698,7]
[322207025,1712870048242,-604.23657195,0.00033698,7]
[322207026,1712870048251,-1051.25340731,0.00033698,7]
[322207027,1712870048263,-52708.92002478,0.00033698,7]
[322207028,1712870048273,-3260.81864983,0.00033698,7]
[322207029,1712870048283,-5115.35596978,0.00033698,7]
[322207030,1712870048293,-882.93572394,0.00033698,7]
[322207031,1712870048302,-5855.11,0.00033698,7]
[322207032,1712870048312,-916.90778355,0.00033698,7]
[322207033,1712870048322,-8061.43505671,0.00033698,7]
[322207034,1712870048331,-745.40754255,0.00033698,7]
[322207035,1712870048342,-7112.59664051,0.00033698,7]
[322207036,1712870048352,-6099.41120793,0.00033698,7]
[322207037,1712870048360,-1872.99991292,0.00033698,7]
[322207038,1712870048370,-1834.35829584,0.00033698,7]
[322207039,1712870048379,-5188.00247216,0.00033698,7]
[322207040,1712870048388,-1961.08,0.00033698,7]
[322207041,1712870048397,-3994.06178449,0.00033698,7]
[322207042,1712870048407,-1940.51156943,0.00033698,7]
[322207043,1712870048421,-1268.14843228,0.00033698,7]
[322207044,1712870048430,-1144.47513317,0.00033698,7]
[322207045,1712870048440,-30065.739628,0.00033698,7]
[322207046,1712870048449,-1318.2320039,0.00033698,7]
[322207047,1712870048458,-3922.53508282,0.00033698,7]
[322207048,1712870048469,-7273.12983948,0.00033698,7]
[322207049,1712870048478,-2185.48921136,0.00033698,7]
[322207050,1712870048490,-1507.86854059,0.00033698,7]
[322207051,1712870048500,-1895.13984085,0.00033698,7]
[322207052,1712870048511,-739.89522699,0.00033698,7]
[322207053,1712870048521,-2576.55707248,0.00033698,7]
[322207054,1712870048530,-752.2203715,0.00033698,7]
[322207055,1712870048540,-918.86196438,0.00033698,7]
[322207056,1712870048549,-548.81605746,0.00033698,7]
[322207057,1712870048558,-2674.79640981,0.00033698,7]
[322207058,1712870048567,-636.27,0.00033698,7]
[322207059,1712870048576,-729.18134466,0.00033698,7]
[322207060,1712870048586,-3486.18870937,0.00033698,7]
[322207061,1712870048596,-763.30773032,0.00033698,7]
[322207062,1712870048605,-8034.51105041,0.00033698,7]
[322207063,1712870048616,-3850.64500949,0.00033698,7]
[322207064,1712870048626,-1687.683475,0.00033698,7]
[322207065,1712870048635,-4101.12285697,0.00033698,7]
[322207066,1712870048644,-2084.28534827,0.00033698,7]
[322207067,1712870048653,-544.28607648,0.00033698,7]
[322207068,1712870048662,-1782.79581798,0.00033698,7]
[322207069,1712870048671,-3405.05579097,0.00033698,7]
[322207070,1712870048680,-510.16209402,0.00033698,7]
[322207071,1712870048689,-565.70412498,0.00033698,7]
[322207072,1712870048699,-2028.7698672,0.00033698,7]
[322207073,1712870048707,-3939.97567311,0.00033698,7]
[322207074,1712870048716,-733.97876348,0.00033698,7]
[322207075,1712870048725,-5901.29175633,0.00033698,7]
[322207076,1712870048735,-2167.03427324,0.00033698,7]
[322207077,1712870048744,-722.68311345,0.00033698,7]
[322207078,1712870048753,-526.03691527,0.00033706,4]
[322207079,1712870048763,-1435.17384311,0.00033706,4]
[322207080,1712870048772,-1500.0,0.00033707,2]
[322207081,1712870048780,-150.0,0.00033714,2]
[322207082,1712870048789,-152.73323881,0.00033714,7]
[322207083,1712870048798,-371.31816133,0.00033722,7]
[322207084,1712870048807,-150.0,0.00033725,2]
[322207085,1712870048817,-150.0,0.00033729,2]
[322207086,1712870048826,-150.0,0.00033737,2]
[322207087,1712870048834,-150.0,0.00033741,2]
[322207088,1712870048843,-150.0,0.00033747,2]
[322207089,1712870048852,-300.0,0.00033749,2]
[322207090,1712870048861,-153.31963962,0.0003376,7]
[322207091,1712870048870,-180.55072661,0.00033769,2]
[322207092,1712870048878,-150.0,0.00033781,2]
[322207093,1712870048887,-150.0,0.00033783,2]
[322207094,1712870048897,-150.0,0.00033795,2]
[322207095,1712870048909,-906.64,0.00033797,2]
[322207096,1712870048920,-503.03,0.00033797,2]
[322207097,1712870048929,-150.0,0.00033819,2]
[322207098,1712870048940,-150.0,0.00033842,2]
[322207099,1712870048949,-1603.06650925,0.00033846,4]
[322207100,1712870048959,-158.82600261,0.00033859,7]
[322207101,1712870048969,-890.18,0.00033872,2]
[322207102,1712870048979,-789.0,0.000339,7]
[322207103,1712870048991,-153.31963962,0.00033961,7]
[322207104,1712870049001,-357.95,0.00033968,2]
[322207105,1712870049010,-12116.00877709,0.00033971,2]
[322207106,1712870049019,-38242.17669179,0.00033971,2]
[322207107,1712870049028,-403.24940431,0.00033972,7]
[322207108,1712870049037,-1030.0,0.00033972,5]
[322207109,1712870049047,-150.9125583,0.00033997,7]
[322207110,1712870049056,-100000.0,0.00034,14]
[322207111,1712870049065,-188.87,0.00034,2]
[322207112,1712870049075,-371.31816133,0.00034008,7]
[322207113,1712870049084,-25000.0,0.00034009,30]
[322207114,1712870049093,-15000.0,0.00034009,30]
[322207115,1712870049104,-153.31963962,0.00034102,7]
[322207116,1712870049113,-158.82600261,0.00034129,7]
[322207117,1712870049122,-524.0,0.00034137,2]
[322207118,1712870049132,-157.041205,0.00034148,24]
[322207119,1712870049142,-650.93,0.000342,2]
[322207120,1712870049151,-1000.0,0.00034247,2]
[322207121,1712870049161,-153.31963962,0.0003431,7]
[322207122,1712870049170,-153.3059433,0.00034335,7]
[322207123,1712870049180,-371.31816133,0.00034378,7]
[322207124,1712870049189,-330.53,0.000344,2]
[322207125,1712870049198,-153.94990066,0.00034415,7]
[322207126,1712870049206,-26594.81613204,0.00034444,6]
[322207127,1712870049215,-273.4,0.00034444,2]
[322207128,1712870049225,-10322.53999867,0.00034444,2]
[322207129,1712870049234,-14235.7350363,0.00034444,2]
[322207130,1712870049242,-15029.94478795,0.00034444,2]
[322207131,1712870049251,-149314.14053817,0.00034444,2]
[322207132,1712870049260,-20677.9327122,0.00034444,2]
[322207133,1712870049269,-27055.15723038,0.00034444,2]
[322207134,1712870049278,-406362.53453574,0.00034444,2]
[322207135,1712870049287,-10212.16486751,0.00034444,2]
[322207136,1712870049295,-26839.24845648,0.00034444,2]
[322207137,1712870049304,-14810.00031018,0.00034444,2]
[322207138,1712870049313,-21380.46401423,0.00034444,2]
[322207139,1712870049322,-34929.12400239,0.00034444,2]
[322207140,1712870049331,-502692.14598389,0.00034444,2]
[322207141,1712870049339,-11523.48447178,0.00034444,2]
[322207142,1712870049348,-13000.0,0.00034444,2]
[322207143,1712870049357,-13669.20046886,0.00034444,2]
[322207144,1712870049366,-158.82600261,0.00034507,7]
[322207145,1712870049375,-700.0,0.0003452,10]
[322207146,1712870049384,-1800.0,0.0003452,10]
[322207147,1712870049393,-153.94990066,0.00034536,7]
[322207148,1712870049402,-150.0,0.00034548,10]
[322207149,1712870049411,-162.87122376,0.00034565,7]
[322207150,1712870049424,-155.00908937,0.00034572,7]
[322207151,1712870049433,-158.82600261,0.00034591,7]
[322207152,1712870049442,-154.03885018,0.00034617,7]
[322207153,1712870049452,-153.31963962,0.00034628,7]
[322207154,1712870049461,-153.31963962,0.00034655,7]
[322207155,1712870049471,-153.31963962,0.00034667,7]